Workbook

Sheet Лист1
A1: Школа | C1: МБОУ " Куркинская ООШ" | F1: Утвердил: | G1: должность | H1: Директор
A2: Типовое примерное меню приготавливаемых блюд | G2: фамилия | H2: Прохорова Р.И.
A3: Возрастная категория | E3: 7-11 лет | G3: дата | H3: 2 | I3: 9 | J3: 2025
H4: день | I4: месяц | J4: год
A5: Неделя | B5: День недели | C5: Прием пищи | D5: Раздел меню | E5: Блюда | F5: Вес блюда, г | G5: Белки | H5: Жиры | I5: Углеводы | J5: Калорийность | K5: № рецептуры | L5: Цена
A6: 1 | B6: 1 | C6: Завтрак | D6: гор.блюдо | E6: Каша рисовая молочная жидкая с маслом сливочным | F6: 200 | G6: 4 | H6: 5 | I6: 15 | J6: 246 | K6: 2 | L6: 17.37
D8: гор.напиток | E8: Чай с лимоном | F8: 200 | G8: 3 | H8: 3 | I8: 13 | J8: 37 | K8: 1.5 | L8: 7.07
D9: хлеб | E9: Бутерброд с маслом и сыром | F9: 40/5/12 | G9: 7 | H9: 8.75 | I9: 19 | J9: 180 | K9: 0.3076923077 | L9: 18.47
D10: фрукты | E10: яблоки | F10: 140 | G10: 1 | H10: 1 | I10: 18.77 | J10: 66 | L10: 24.3
I11: 14
D13: итого | F13: =SUM(F6:F12) -> 540 | G13: =SUM(G6:G12) -> 15 | H13: 18 | I13: 61 | J13: =SUM(J6:J12) -> 529 | L13: 134.42
A14: =A6 -> 1 | B14: =B6 -> 1 | C14: Завтрак 2 | D14: фрукты
D17: итого | F17: =SUM(F14:F16) -> 0 | G17: =SUM(G14:G16) -> 0 | H17: =SUM(H14:H16) -> 0 | I17: =SUM(I14:I16) -> 0 | J17: =SUM(J14:J16) -> 0 | L17: =SUM(L14:L22) -> 
A18: =A6 -> 1 | B18: =B6 -> 1 | C18: Обед | D18: закуска | E18: Свежие помидоры (порционно) | F18: 60 | G18: 0.66 | H18: 0.12 | I18: 2 | J18: 18.06 | K18: 148 | L18: 3.21
D19: 1 блюдо | E19: Суп картофельный с рыбными консервами | F19: 250 | G19: 8.75 | H19: 11.4 | I19: 13.47 | J19: 191.5 | K19: 123 | L19: 32.62
D20: 2 блюдо | E20: Птица в соусе томатном | F20: 90 | G20: 14 | H20: 10.08 | I20: 0 | J20: 145.44 | K20: 367 | L20: 33.73
D21: гарнир | E21: Макаронные изделия отварные (гарнир) | F21: 180 | G21: 6.7 | H21: 0.54 | I21: 35.5 | J21: 228 | K21: 256 | L21: 9.96
D22: напиток | E22: Компот из свежих фруктов | F22: 200 | G22: 0.1 | H22: 0.1 | I22: 11.1 | J22: 46 | K22: 486 | L22: 8.26
D23: хлеб бел. | E23: Хлеб пшеничный витаминный | F23: 50 | G23: 3.85 | H23: 0.48 | I23: 23.95 | J23: 118 | K23: 0.5384615385 | L23: 4.07
D24: хлеб черн. | E24: Хлеб ржаной | F24: 30 | G24: 1.98 | H24: 0.33 | I24: 12.3 | J24: 63 | K24: 0.6153846154 | L24: 2.22
D27: итого | F27: =SUM(F18:F26) -> 860 | G27: =SUM(G18:G26) -> 36.04 | H27: =SUM(H18:H26) -> 23.05 | I27: =SUM(I18:I26) -> 98.32 | J27: =SUM(J18:J26) -> 810 | L27: 94.07
A28: =A6 -> 1 | B28: =B6 -> 1 | C28: Полдник | D28: булочное
D29: напиток
D32: итого | F32: =SUM(F28:F31) -> 0 | G32: =SUM(G28:G31) -> 0 | H32: =SUM(H28:H31) -> 0 | I32: =SUM(I28:I31) -> 0 | J32: =SUM(J28:J31) -> 0
A33: =A6 -> 1 | B33: =B6 -> 1 | C33: Ужин | D33: гор.блюдо
D34: гарнир
D35: напиток
D36: хлеб
D39: итого | F39: =SUM(F33:F38) -> 0 | G39: =SUM(G33:G38) -> 0 | H39: =SUM(H33:H38) -> 0 | I39: =SUM(I33:I38) -> 0 | J39: =SUM(J33:J38) -> 0 | L39: =SUM(L33:L41) -> 
A40: =A6 -> 1 | B40: =B6 -> 1 | C40: Ужин 2 | D40: кисломол.
D41: булочное
D42: напиток
D43: фрукты
D46: итого | F46: =SUM(F40:F45) -> 0 | G46: =SUM(G40:G45) -> 0 | H46: =SUM(H40:H45) -> 0 | I46: =SUM(I40:I45) -> 0 | J46: =SUM(J40:J45) -> 0 | L46: =SUM(L40:L48) -> 
A47: =A6 -> 1 | B47: =B6 -> 1 | C47: Итого за день: | F47: =F13+F17+F27+F32+F39+F46 -> 1400 | G47: =G13+G17+G27+G32+G39+G46 -> 51.04 | H47: =H13+H17+H27+H32+H39+H46 -> 41.05 | I47: =I13+I17+I27+I32+I39+I46 -> 159.32 | J47: =J13+J17+J27+J32+J39+J46 -> 1339 | L47: =L13+L17+L27+L32+L39+L46 -> 
A48: 1 | B48: 2 | C48: Завтрак | D48: гор.блюдо | E48: Каша манная молочная с маслом сливочным | F48: 200 | G48: 5.3 | H48: 5.1 | I48: 27.5 | J48: 117 | K48: 0.8333333333 | L48: 13.09
D50: гор.напиток | E50: Чай с молоком | F50: 200 | G50: 1.4 | H50: 1.42 | I50: 11.23 | J50: 63 | K50: 1.6 | L50: 9.35
D51: хлеб | E51: Бутерброд с маслом и сыром | F51: 57 | G51: 6.6 | H51: 8.75 | I51: 18.77 | J51: 180 | K51: 0.3076923077 | L51: 18.47
D52: фрукты | E52: Яблоки | F52: 140 | G52: 1 | H52: 1 | I52: 14 | J52: 66 | L52: 26.3
D55: итого | F55: =SUM(F48:F54) -> 597 | G55: =SUM(G48:G54) -> 14.3 | H55: =SUM(H48:H54) -> 16.27 | I55: =SUM(I48:I54) -> 71.5 | J55: =SUM(J48:J54) -> 426 | L55: 67.21
A56: =A48 -> 1 | B56: =B48 -> 2 | C56: Завтрак 2 | D56: фрукты
D59: итого | F59: =SUM(F56:F58) -> 0 | G59: =SUM(G56:G58) -> 0 | H59: =SUM(H56:H58) -> 0 | I59: =SUM(I56:I58) -> 0 | J59: =SUM(J56:J58) -> 0 | L59: =SUM(L56:L64) -> 
A60: =A48 -> 1 | B60: =B48 -> 2 | C60: Обед | D60: закуска | E60: Свежие огурцы (порционно) | F60: 60 | G60: 0.48 | H60: 0.06 | I60: 1.5 | J60: 7.98 | K60: 148 | L60: 4.05
D61: 1 блюдо | E61: Борщ с капустой и картофелем со сметаной | F61: 255 | G61: 1.8 | H61: 4.4 | I61: 7.2 | J61: 76 | K61: 95 | L61: 8.74
D62: 2 блюдо | E62: Жаркое по-домашнему | F62: 200 | G62: 18.8 | H62: 14.3 | I62: 15.8 | J62: 307 | K62: 328 | L62: 67.56
D63: гарнир
D64: напиток | E64: Компот из плодов или ягод сушёных | F64: 200 | G64: 0.3 | H64: 0.01 | I64: 17.5 | J64: 72 | K64: 494 | L64: 7.43
D65: хлеб бел. | E65: Хлеб пшеничный витаминный | F65: 50 | G65: 3.85 | H65: 0.48 | I65: 23.95 | J65: 118 | K65: 0.6153846154 | L65: 4.07
D66: хлеб черн. | E66: Хлеб ржаной | F66: 30 | G66: 1.98 | H66: 0.33 | I66: 12.3 | J66: 63 | K66: 0.5384615385 | L66: 2.22
D69: итого | F69: =SUM(F60:F68) -> 795 | G69: =SUM(G60:G68) -> 27.21 | H69: =SUM(H60:H68) -> 19.58 | I69: =SUM(I60:I68) -> 78.25 | J69: =SUM(J60:J68) -> 643.98 | L69: 94.07
A70: =A48 -> 1 | B70: =B48 -> 2 | C70: Полдник | D70: булочное
D71: напиток
D74: итого | F74: =SUM(F70:F73) -> 0 | G74: =SUM(G70:G73) -> 0 | H74: =SUM(H70:H73) -> 0 | I74: =SUM(I70:I73) -> 0 | J74: =SUM(J70:J73) -> 0
A75: =A48 -> 1 | B75: =B48 -> 2 | C75: Ужин | D75: гор.блюдо
D76: гарнир
D77: напиток
D78: хлеб
D81: итого | F81: =SUM(F75:F80) -> 0 | G81: =SUM(G75:G80) -> 0 | H81: =SUM(H75:H80) -> 0 | I81: =SUM(I75:I80) -> 0 | J81: =SUM(J75:J80) -> 0 | L81: =SUM(L75:L83) -> 
A82: =A48 -> 1 | B82: =B48 -> 2 | C82: Ужин 2 | D82: кисломол.
D83: булочное
D84: напиток
D85: фрукты
D88: итого | F88: =SUM(F82:F87) -> 0 | G88: =SUM(G82:G87) -> 0 | H88: =SUM(H82:H87) -> 0 | I88: =SUM(I82:I87) -> 0 | J88: =SUM(J82:J87) -> 0 | L88: =SUM(L82:L90) -> 
A89: =A48 -> 1 | B89: =B48 -> 2 | C89: Итого за день: | F89: =F55+F59+F69+F74+F81+F88 -> 1392 | G89: =G55+G59+G69+G74+G81+G88 -> 41.51 | H89: =H55+H59+H69+H74+H81+H88 -> 35.85 | I89: =I55+I59+I69+I74+I81+I88 -> 149.75 | J89: =J55+J59+J69+J74+J81+J88 -> 1069.98 | L89: =L55+L59+L69+L74+L81+L88 -> 
A90: 1 | B90: 3 | C90: Завтрак | D90: гор.блюдо | E90: Каша пшенная молочная с маслом сливочным | F90: 200 | G90: 6 | H90: 6.8 | I90: 28.6 | J90: 199.6 | K90: 0.35 | L90: 17.05
D92: гор.напиток | E92: Кофейный напиток с молоком | F92: 200 | G92: 3.01 | H92: 2.88 | I92: 13.36 | J92: 91 | K92: 1.7 | L92: 11.53
D93: хлеб | E93: Бутерброд с маслом и сыром | F93: 57 | G93: 6.6 | H93: 8.75 | I93: 18.77 | J93: 180 | K93: 0.3076923077 | L93: 18.47
D94: фрукты | E94: Яблоки | F94: 140 | G94: 1 | H94: 1 | I94: 14 | J94: 66 | L94: 20.16
D97: итого | F97: =SUM(F90:F96) -> 597 | G97: =SUM(G90:G96) -> 16.61 | H97: =SUM(H90:H96) -> 19.43 | I97: =SUM(I90:I96) -> 74.73 | J97: =SUM(J90:J96) -> 536.6 | L97: 67.21
A98: =A90 -> 1 | B98: =B90 -> 3 | C98: Завтрак 2 | D98: фрукты
D101: итого | F101: =SUM(F98:F100) -> 0 | G101: =SUM(G98:G100) -> 0 | H101: =SUM(H98:H100) -> 0 | I101: =SUM(I98:I100) -> 0 | J101: =SUM(J98:J100) -> 0 | L101: =SUM(L98:L106) -> 
A102: =A90 -> 1 | B102: =B90 -> 3 | C102: Обед | D102: закуска | E102: Свежие помидоры (порционно) | F102: 60 | G102: 0.66 | H102: 0.12 | I102: 2.28 | J102: 18.06 | K102: 148 | L102: 30.91
D103: 1 блюдо | E103: Суп с макаронными изделиями и картофелем | F103: 250 | G103: 3.18 | H103: 4.85 | I103: 21.83 | J103: 36.36 | K103: 130 | L103: 5.22
D104: 2 блюдо | E104: котлета из мяса кур | F104: 90 | G104: 14 | H104: 9 | I104: 8 | J104: 165 | K104: 202 | L104: 35.26
D105: гарнир | E105: каша гречневая рассыпчатая | F105: 180 | G105: 11 | H105: 8 | I105: 47 | J105: 300 | K105: 372 | L105: 8.29
D106: напиток | E106: Напиток из шиповника | F106: 200 | G106: 0.7 | H106: 0.3 | I106: 18.3 | J106: 78 | K106: 496 | L106: 5.75
D107: хлеб бел. | E107: Хлеб пшеничный витаминный | F107: 50 | G107: 3.85 | H107: 0.48 | I107: 23.95 | J107: 118 | K107: 0.5384615385 | L107: 4.07
D108: хлеб черн. | E108: Хлеб ржаной | F108: 30 | G108: 1.98 | H108: 0.33 | I108: 12.3 | J108: 63 | K108: 0.6153846154 | L108: 2.22
E109: Соус томатный | F109: 30 | G109: 0.33 | H109: 1 | I109: 1.4 | J109: 15.77 | K109: 419 | L109: 2.35
D111: итого | F111: =SUM(F102:F110) -> 890 | G111: =SUM(G102:G110) -> 35.7 | H111: =SUM(H102:H110) -> 24.08 | I111: =SUM(I102:I110) -> 135.06 | J111: =SUM(J102:J110) -> 794.19 | L111: 94.07
A112: =A90 -> 1 | B112: =B90 -> 3 | C112: Полдник | D112: булочное
D113: напиток
D116: итого | F116: =SUM(F112:F115) -> 0 | G116: =SUM(G112:G115) -> 0 | H116: =SUM(H112:H115) -> 0 | I116: =SUM(I112:I115) -> 0 | J116: =SUM(J112:J115) -> 0
A117: =A90 -> 1 | B117: =B90 -> 3 | C117: Ужин | D117: гор.блюдо
D118: гарнир
D119: напиток
D120: хлеб
D123: итого | F123: =SUM(F117:F122) -> 0 | G123: =SUM(G117:G122) -> 0 | H123: =SUM(H117:H122) -> 0 | I123: =SUM(I117:I122) -> 0 | J123: =SUM(J117:J122) -> 0 | L123: =SUM(L117:L125) -> 
A124: =A90 -> 1 | B124: =B90 -> 3 | C124: Ужин 2 | D124: кисломол.
D125: булочное
D126: напиток
D127: фрукты
D130: итого | F130: =SUM(F124:F129) -> 0 | G130: =SUM(G124:G129) -> 0 | H130: =SUM(H124:H129) -> 0 | I130: =SUM(I124:I129) -> 0 | J130: =SUM(J124:J129) -> 0 | L130: =SUM(L124:L132) -> 
A131: =A90 -> 1 | B131: =B90 -> 3 | C131: Итого за день: | F131: =F97+F101+F111+F116+F123+F130 -> 1487 | G131: =G97+G101+G111+G116+G123+G130 -> 52.31 | H131: =H97+H101+H111+H116+H123+H130 -> 43.51 | I131: =I97+I101+I111+I116+I123+I130 -> 209.79 | J131: =J97+J101+J111+J116+J123+J130 -> 1330.79 | L131: =L97+L101+L111+L116+L123+L130 -> 
A132: 1 | B132: 4 | C132: Завтрак | D132: гор.блюдо | E132: Каша молочная ассорти ( рис, греча) c маслом сливочным | F132: 200 | G132: 5.1 | H132: 5.88 | I132: 24.68 | J132: 172 | K132: 3.5 | L132: 15.52
D134: гор.напиток | E134: Какао с молоком | F134: 200 | G134: 3.9 | H134: 3.5 | I134: 22.9 | J134: 138 | K134: 1.8 | L134: 13.32
D135: хлеб | E135: Бутерброд с маслом и сыром | F135: 57 | G135: 6.6 | H135: 8.75 | I135: 18.77 | J135: 180 | K135: 0.3076923077 | L135: 18.47
D136: фрукты | E136: Яблоки | F136: 140 | G136: 1 | H136: 1 | I136: 14 | J136: 66 | L136: 19.9
D139: итого | F139: =SUM(F132:F138) -> 597 | G139: =SUM(G132:G138) -> 16.6 | H139: =SUM(H132:H138) -> 19.13 | I139: =SUM(I132:I138) -> 80.35 | J139: =SUM(J132:J138) -> 556 | L139: 67.21
A140: =A132 -> 1 | B140: =B132 -> 4 | C140: Завтрак 2 | D140: фрукты
D143: итого | F143: =SUM(F140:F142) -> 0 | G143: =SUM(G140:G142) -> 0 | H143: =SUM(H140:H142) -> 0 | I143: =SUM(I140:I142) -> 0 | J143: =SUM(J140:J142) -> 0 | L143: =SUM(L140:L148) -> 
A144: =A132 -> 1 | B144: =B132 -> 4 | C144: Обед | D144: закуска | E144: Кууруза консервированная (промышленная) | F144: 60 | G144: 1.8 | H144: 2.28 | I144: 2.18 | J144: 40.2 | K144: 157 | L144: 11.22
D145: 1 блюдо | E145: Суп картофельный с крупой | F145: 250 | G145: 2.23 | H145: 2.7 | I145: 13.25 | J145: 87.25 | K145: 115 | L145: 4.57
D146: 2 блюдо | E146: Котлета "Школьная" в томатном соусе | F146: 90 | G146: 13.5 | H146: 9.9 | I146: 11.7 | J146: 189.9 | K146: 347 | L146: 49.3
D147: гарнир | E147: Макаронные изделия отварные | F147: 180 | G147: 6.7 | H147: 0.54 | I147: 35.5 | J147: 228 | K147: 256 | L147: 9.96
D148: напиток | E148: Кисель Витошка | F148: 200 | G148: 0 | H148: 0 | I148: 24 | J148: 95 | K148: 504 | L148: 12.73
D149: хлеб бел. | E149: Хлеб пшеничный витаминный | F149: 50 | G149: 3.85 | H149: 0.48 | I149: 23.95 | J149: 118 | K149: 0.5384615385 | L149: 4.07
D150: хлеб черн. | E150: Хлеб ржаной | F150: 30 | G150: 1.98 | H150: 0.33 | I150: 12.3 | J150: 63 | K150: 0.6153846154 | L150: 2.22
D153: итого | F153: =SUM(F144:F152) -> 860 | G153: =SUM(G144:G152) -> 30.06 | H153: =SUM(H144:H152) -> 16.23 | I153: =SUM(I144:I152) -> 122.88 | J153: =SUM(J144:J152) -> 821.35 | L153: 94.07
A154: =A132 -> 1 | B154: =B132 -> 4 | C154: Полдник | D154: булочное
D155: напиток
D158: итого | F158: =SUM(F154:F157) -> 0 | G158: =SUM(G154:G157) -> 0 | H158: =SUM(H154:H157) -> 0 | I158: =SUM(I154:I157) -> 0 | J158: =SUM(J154:J157) -> 0
A159: =A132 -> 1 | B159: =B132 -> 4 | C159: Ужин | D159: гор.блюдо
D160: гарнир
D161: напиток
D162: хлеб
D165: итого | F165: =SUM(F159:F164) -> 0 | G165: =SUM(G159:G164) -> 0 | H165: =SUM(H159:H164) -> 0 | I165: =SUM(I159:I164) -> 0 | J165: =SUM(J159:J164) -> 0 | L165: =SUM(L159:L167) -> 
A166: =A132 -> 1 | B166: =B132 -> 4 | C166: Ужин 2 | D166: кисломол.
D167: булочное
D168: напиток
D169: фрукты
D172: итого | F172: =SUM(F166:F171) -> 0 | G172: =SUM(G166:G171) -> 0 | H172: =SUM(H166:H171) -> 0 | I172: =SUM(I166:I171) -> 0 | J172: =SUM(J166:J171) -> 0 | L172: =SUM(L166:L174) -> 
A173: =A132 -> 1 | B173: =B132 -> 4 | C173: Итого за день: | F173: =F139+F143+F153+F158+F165+F172 -> 1457 | G173: =G139+G143+G153+G158+G165+G172 -> 46.66 | H173: =H139+H143+H153+H158+H165+H172 -> 35.36 | I173: =I139+I143+I153+I158+I165+I172 -> 203.23 | J173: =J139+J143+J153+J158+J165+J172 -> 1377.35 | L173: =L139+L143+L153+L158+L165+L172 -> 
A174: 1 | B174: 5 | C174: Завтрак | D174: гор.блюдо | E174: Каша пшеничная молочная с маслом сливочным | F174: 200 | G174: 6.35 | H174: 5.23 | I174: 31.9 | J174: 194 | K174: 4.5 | L174: 13.13
D176: гор.напиток | E176: Чай с молоком | F176: 200 | G176: 1.4 | H176: 1.42 | I176: 11.23 | J176: 63 | K176: 1.6 | L176: 9.35
D177: хлеб | E177: Бутерброд с маслом и сыром | F177: 57 | G177: 6.6 | H177: 8.75 | I177: 18.77 | J177: 180 | K177: 0.3076923077 | L177: 18.47
D178: фрукты | E178: Яблоки | F178: 140 | G178: 1 | H178: 1 | I178: 14 | J178: 66 | L178: 26.26
D181: итого | F181: =SUM(F174:F180) -> 597 | G181: =SUM(G174:G180) -> 15.35 | H181: =SUM(H174:H180) -> 16.4 | I181: =SUM(I174:I180) -> 75.9 | J181: =SUM(J174:J180) -> 503 | L181: =SUM(L174:L180) -> 67.21
A182: =A174 -> 1 | B182: =B174 -> 5 | C182: Завтрак 2 | D182: фрукты
D185: итого | F185: =SUM(F182:F184) -> 0 | G185: =SUM(G182:G184) -> 0 | H185: =SUM(H182:H184) -> 0 | I185: =SUM(I182:I184) -> 0 | J185: =SUM(J182:J184) -> 0 | L185: =SUM(L182:L190) -> 
A186: =A174 -> 1 | B186: =B174 -> 5 | C186: Обед | D186: закуска | E186: Свежие огурцы (порционно) | F186: 60 | G186: 0.48 | H186: 0.06 | I186: 1.5 | J186: 7.98 | K186: 148 | L186: 4.05
D187: 1 блюдо | E187: Суп картофельный с бобовыми | F187: 250 | G187: 2.34 | H187: 3.89 | I187: 13.61 | J187: 98.79 | K187: 37 | L187: 7.32
D188: 2 блюдо | E188: Запеканка картофельная, фаршированная отварным мясом | F188: 200 | G188: 21 | H188: 17 | I188: 17 | J188: 305 | K188: 334 | L188: 73.5
D189: гарнир
D190: напиток | E190: Компот из сухофруктов | F190: 200 | G190: 0.6 | H190: 0.1 | I190: 20.1 | J190: 84 | K190: 495 | L190: 2.91
D191: хлеб бел. | E191: Хлеб пшеничный витаминный | F191: 50 | G191: 3.85 | H191: 0.48 | I191: 23.95 | J191: 118 | K191: 0.6153846154 | L191: 4.07
D192: хлеб черн. | E192: Хлеб ржаной | F192: 30 | G192: 1.98 | H192: 0.33 | I192: 12.3 | J192: 63 | K192: 0.5384615385 | L192: 2.22
D195: итого | F195: =SUM(F186:F194) -> 790 | G195: =SUM(G186:G194) -> 30.25 | H195: =SUM(H186:H194) -> 21.86 | I195: =SUM(I186:I194) -> 88.46 | J195: =SUM(J186:J194) -> 676.77 | L195: 94.07
A196: =A174 -> 1 | B196: =B174 -> 5 | C196: Полдник | D196: булочное
D197: напиток
D200: итого | F200: =SUM(F196:F199) -> 0 | G200: =SUM(G196:G199) -> 0 | H200: =SUM(H196:H199) -> 0 | I200: =SUM(I196:I199) -> 0 | J200: =SUM(J196:J199) -> 0
A201: =A174 -> 1 | B201: =B174 -> 5 | C201: Ужин | D201: гор.блюдо
D202: гарнир
D203: напиток
D204: хлеб
D207: итого | F207: =SUM(F201:F206) -> 0 | G207: =SUM(G201:G206) -> 0 | H207: =SUM(H201:H206) -> 0 | I207: =SUM(I201:I206) -> 0 | J207: =SUM(J201:J206) -> 0 | L207: =SUM(L201:L209) -> 
A208: =A174 -> 1 | B208: =B174 -> 5 | C208: Ужин 2 | D208: кисломол.
D209: булочное
D210: напиток
D211: фрукты
D214: итого | F214: =SUM(F208:F213) -> 0 | G214: =SUM(G208:G213) -> 0 | H214: =SUM(H208:H213) -> 0 | I214: =SUM(I208:I213) -> 0 | J214: =SUM(J208:J213) -> 0 | L214: =SUM(L208:L216) -> 
A215: =A174 -> 1 | B215: =B174 -> 5 | C215: Итого за день: | F215: =F181+F185+F195+F200+F207+F214 -> 1387 | G215: =G181+G185+G195+G200+G207+G214 -> 45.6 | H215: =H181+H185+H195+H200+H207+H214 -> 38.26 | I215: =I181+I185+I195+I200+I207+I214 -> 164.36 | J215: =J181+J185+J195+J200+J207+J214 -> 1179.77 | L215: =L181+L185+L195+L200+L207+L214 -> 
A216: 1 | B216: 6 | C216: Завтрак | D216: гор.блюдо | E216: Суп молочный с лапшой | F216: 250 | G216: 4.3 | H216: 4.6 | I216: 14.96 | J216: 118 | K216: 11.5 | L216: 12.96
D218: гор.напиток | E218: Кофейный напиток с молоком | F218: 200 | G218: 3.01 | H218: 2.88 | I218: 13.36 | J218: 91 | K218: 1.7 | L218: 11.53
D219: хлеб | E219: Бутерброд с маслом и сыром | F219: 57 | G219: 6.6 | H219: 8.75 | I219: 18.77 | J219: 180 | K219: 0.3076923077 | L219: 18.47
D220: фрукты | E220: яблоки | F220: 140 | G220: 1 | H220: 1 | I220: 14 | J220: 66 | L220: 24.25
D223: итого | F223: =SUM(F216:F222) -> 647 | G223: =SUM(G216:G222) -> 14.91 | H223: =SUM(H216:H222) -> 17.23 | I223: =SUM(I216:I222) -> 61.09 | J223: =SUM(J216:J222) -> 455 | L223: 67.21
A224: =A216 -> 1 | B224: =B216 -> 6 | C224: Завтрак 2 | D224: фрукты
D227: итого | F227: =SUM(F224:F226) -> 0 | G227: =SUM(G224:G226) -> 0 | H227: =SUM(H224:H226) -> 0 | I227: =SUM(I224:I226) -> 0 | J227: =SUM(J224:J226) -> 0 | L227: =SUM(L224:L232) -> 
A228: =A216 -> 1 | B228: =B216 -> 6 | C228: Обед | D228: закуска | E228: Свежие помидоры (порционно) | F228: 60 | G228: 0.66 | H228: 0.12 | I228: 2.28 | J228: 18.06 | K228: 148 | L228: 9.37
D229: 1 блюдо | E229: Рассольник домашний со сметаной | F229: 255 | G229: 4.45 | H229: 25.08 | I229: 16.85 | J229: 127.85 | K229: 101 | L229: 11.11
D230: 2 блюдо | E230: Котлета "Нежная" | F230: 90 | G230: 16.74 | H230: 11.16 | I230: 5.67 | J230: 190.8 | K230: 373 | L230: 46.84
D231: гарнир | E231: Рис отварной | F231: 180 | G231: 4.52 | H231: 6.52 | I231: 46.62 | J231: 263.16 | K231: 385 | L231: 12.2
D232: напиток | E232: Компот из свежих плодов и ягод | F232: 200 | G232: 0.1 | H232: 0.1 | I232: 11.1 | J232: 46 | K232: 486 | L232: 8.26
D233: хлеб бел. | E233: Хлеб пшеничный витаминный | F233: 50 | G233: 3.85 | H233: 0.48 | I233: 23.95 | J233: 118 | K233: 0.5384615385 | L233: 4.07
D234: хлеб черн. | E234: Хлеб ржаной | F234: 30 | G234: 1.98 | H234: 0.33 | I234: 12.3 | J234: 63 | K234: 0.6153846154 | L234: 2.22
D237: итого | F237: =SUM(F228:F236) -> 865 | G237: =SUM(G228:G236) -> 32.3 | H237: =SUM(H228:H236) -> 43.79 | I237: =SUM(I228:I236) -> 118.77 | J237: =SUM(J228:J236) -> 826.87 | L237: 94.07
A238: =A216 -> 1 | B238: =B216 -> 6 | C238: Полдник | D238: булочное
D239: напиток
D242: итого | F242: =SUM(F238:F241) -> 0 | G242: =SUM(G238:G241) -> 0 | H242: =SUM(H238:H241) -> 0 | I242: =SUM(I238:I241) -> 0 | J242: =SUM(J238:J241) -> 0
A243: =A216 -> 1 | B243: =B216 -> 6 | C243: Ужин | D243: гор.блюдо
D244: гарнир
D245: напиток
D246: хлеб
D249: итого | F249: =SUM(F243:F248) -> 0 | G249: =SUM(G243:G248) -> 0 | H249: =SUM(H243:H248) -> 0 | I249: =SUM(I243:I248) -> 0 | J249: =SUM(J243:J248) -> 0 | L249: =SUM(L243:L251) -> 
A250: =A216 -> 1 | B250: =B216 -> 6 | C250: Ужин 2 | D250: кисломол.
D251: булочное
D252: напиток
D253: фрукты
D256: итого | F256: =SUM(F250:F255) -> 0 | G256: =SUM(G250:G255) -> 0 | H256: =SUM(H250:H255) -> 0 | I256: =SUM(I250:I255) -> 0 | J256: =SUM(J250:J255) -> 0 | L256: =SUM(L250:L258) -> 
A257: =A216 -> 1 | B257: =B216 -> 6 | C257: Итого за день: | F257: =F223+F227+F237+F242+F249+F256 -> 1512 | G257: =G223+G227+G237+G242+G249+G256 -> 47.21 | H257: =H223+H227+H237+H242+H249+H256 -> 61.02 | I257: =I223+I227+I237+I242+I249+I256 -> 179.86 | J257: =J223+J227+J237+J242+J249+J256 -> 1281.87 | L257: =L223+L227+L237+L242+L249+L256 -> 
A258: 1 | B258: 7 | C258: Завтрак | D258: гор.блюдо | E258: Каша гречневая молочная с маслом сливочным | F258: 200 | G258: 7.2 | H258: 6.6 | I258: 29.3 | J258: 206 | K258: 2024-04-02 | L258: 13.49
D260: гор.напиток | E260: Чай с лимоном | F260: 200 | G260: 0.08 | H260: 0.01 | I260: 9.23 | J260: 37 | K260: 2024-10-15 | L260: 7.07
D261: хлеб | E261: Бутерброд с маслом и сыром | F261: 57 | G261: 6.6 | H261: 8.75 | I261: 18.77 | J261: 180 | K261: 2013-04-01 | L261: 18.47
D262: фрукты | E262: яблоки | F262: 140 | G262: 1 | H262: 1 | I262: 14 | J262: 66 | L262: 28.18
D265: итого | F265: =SUM(F258:F264) -> 597 | G265: =SUM(G258:G264) -> 14.88 | H265: =SUM(H258:H264) -> 16.36 | I265: =SUM(I258:I264) -> 71.3 | J265: =SUM(J258:J264) -> 489 | L265: 67.21
A266: =A258 -> 1 | B266: =B258 -> 7 | C266: Завтрак 2 | D266: фрукты
D269: итого | F269: =SUM(F266:F268) -> 0 | G269: =SUM(G266:G268) -> 0 | H269: =SUM(H266:H268) -> 0 | I269: =SUM(I266:I268) -> 0 | J269: =SUM(J266:J268) -> 0 | L269: =SUM(L266:L274) -> 
A270: =A258 -> 1 | B270: =B258 -> 7 | C270: Обед | D270: закуска | E270: Зеленый горошек консервированный (промышленный) | F270: 60 | G270: 1.8 | H270: 2.28 | I270: 3.18 | J270: 40.2 | K270: 157 | L270: 18.04
D271: 1 блюдо | E271: Суп с макаронными изделиями и картофелем | F271: 250 | G271: 3.18 | H271: 4.85 | I271: 21.83 | J271: 36.36 | K271: 130 | L271: 5.22
D272: гарнир | E272: Картофельное пюре | F272: 100 | G272: 2.1 | H272: 4 | I272: 6.1 | J272: 68 | K272: 377 | L272: 37.67
D273: гарнир | E273: Капуста тушеная | F273: 100 | G273: 2.2 | H273: 3.4 | I273: 8.1 | J273: 72 | K273: 380 | L273: 11.09
D274: гор.блюдо | E274: Тефтели из говядины с рисом | F274: 120 | G274: 13 | H274: 10 | I274: 7 | J274: 170 | K274: 350 | L274: 12.85
D275: напиток | E275: Компот из сухофруктов | F275: 200 | G275: 0.6 | H275: 0.1 | I275: 20.1 | J275: 84 | K275: 495 | L275: 2.91
D276: хлеб бел | E276: Хлеб пшеничный витаминный | F276: 50 | G276: 3.85 | H276: 0.48 | I276: 23.95 | J276: 118 | K276: 2013-07-01 | L276: 4.07
D277: хлебчкрн. | E277: Хлеб ржаной | F277: 30 | G277: 1.98 | H277: 0.33 | I277: 12.3 | J277: 63 | K277: 2013-08-01 | L277: 2.22
D279: итого | F279: =SUM(F270:F278) -> 910 | G279: =SUM(G270:G278) -> 28.71 | H279: =SUM(H270:H278) -> 25.44 | I279: =SUM(I270:I278) -> 102.56 | J279: =SUM(J270:J278) -> 651.56 | L279: 94.07
A280: =A258 -> 1 | B280: =B258 -> 7 | C280: Полдник | D280: булочное
D281: напиток
D284: итого | F284: =SUM(F280:F283) -> 0 | G284: =SUM(G280:G283) -> 0 | H284: =SUM(H280:H283) -> 0 | I284: =SUM(I280:I283) -> 0 | J284: =SUM(J280:J283) -> 0
... 215 more rows
